[Event "Titled Tuesday Blitz August 22 Late 2023"]
[White "Chemin, Justo Reinaldo"]
[Black "Hajiyev, Kanan"]
[WhiteFideId "2101580"]
[BlackFideId "13404148"]
[WhiteElo "2276"]
[BlackElo "2458"]
[Result "0-1"]
[Round "4"]
[TimeControl "180+1"]
[Date "2023.08.22"]
[WhiteClock "0:00:23"]
[BlackClock "0:01:09"]
[Board "167"]

1. d4 {[%clk 0:03:00]}  Nf6 {[%clk 0:02:57]} 2. Bg5 {[%clk 0:02:59]}  e6 {[%clk 0:02:58]} 3. e4 {[%clk 0:02:58]}  h6 {[%clk 0:02:59]} 4. Bxf6 {[%clk 0:02:58]}  Qxf6 {[%clk 0:03:00]} 5. Nf3 {[%clk 0:02:58]}  b6 {[%clk 0:03:00]} 6. c3 {[%clk 0:02:48]}  c5 {[%clk 0:02:57]} 7. dxc5 {[%clk 0:02:41]}  Bxc5 {[%clk 0:02:55]} 8. Nbd2 {[%clk 0:02:40]}  O-O {[%clk 0:02:54]} 9. Bd3 {[%clk 0:02:39]}  d5 {[%clk 0:02:53]} 10. Qe2 {[%clk 0:02:38]}  Bb7 {[%clk 0:02:47]} 11. O-O-O {[%clk 0:02:25]}  Nc6 {[%clk 0:02:39]} 12. e5 {[%clk 0:02:17]}  Qe7 {[%clk 0:02:37]} 13. Rde1 {[%clk 0:02:09]}  d4 {[%clk 0:02:32]} 14. Qe4 {[%clk 0:01:43]}  g6 {[%clk 0:02:28]} 15. Qg4 {[%clk 0:01:35]}  dxc3 {[%clk 0:02:22]} 16. Ne4 {[%clk 0:01:27]}  cxb2+ {[%clk 0:02:20]} 17. Kb1 {[%clk 0:01:27]}  Nb4 {[%clk 0:01:47]} 18. Nf6+ {[%clk 0:01:27]}  Kg7 {[%clk 0:01:41]} 19. Qh4 {[%clk 0:01:06]}  Nxd3 {[%clk 0:01:36]} 20. Nh5+ {[%clk 0:01:04]}  gxh5 {[%clk 0:01:34]} 21. Qxh5 {[%clk 0:00:55]}  Bxf3 {[%clk 0:01:23]} 22. gxf3 {[%clk 0:00:52]}  Nxe1 {[%clk 0:01:22]} 23. Rg1+ {[%clk 0:00:51]}  Kh7 {[%clk 0:01:23]} 24. Qg4 {[%clk 0:00:38]}  Qg5 {[%clk 0:01:09]} 25. Qe4+ {[%clk 0:00:23]}  Qf5 {[%clk 0:01:09]} 0-1


[Site "https://www.chess.com"]

[Event "Titled Tuesday Blitz August 22 Late 2023"]
[White "Czerw, Dawid"]
[Black "Garcia-Castany Musellas, Gal.la"]
[WhiteFideId "1145746"]
[BlackFideId "2241803"]
[WhiteElo "2456"]
[BlackElo "2263"]
[Result "0-1"]
[Round "4"]
[TimeControl "180+1"]
[Date "2023.08.22"]
[WhiteClock "0:00:00"]
[BlackClock "0:00:09"]
[Board "168"]

1. e4 {[%clk 0:03:00]}  c5 {[%clk 0:02:53]} 2. Nf3 {[%clk 0:03:01]}  d6 {[%clk 0:02:53]} 3. d4 {[%clk 0:03:01]}  cxd4 {[%clk 0:02:53]} 4. Nxd4 {[%clk 0:03:01]}  Nf6 {[%clk 0:02:54]} 5. Nc3 {[%clk 0:03:02]}  a6 {[%clk 0:02:54]} 6. h4 {[%clk 0:03:02]}  e5 {[%clk 0:02:54]} 7. Nb3 {[%clk 0:03:02]}  Be6 {[%clk 0:02:45]} 8. f4 {[%clk 0:03:02]}  Qc7 {[%clk 0:02:43]} 9. f5 {[%clk 0:03:00]}  Bc4 {[%clk 0:02:43]} 10. g4 {[%clk 0:02:56]}  h6 {[%clk 0:02:38]} 11. Be3 {[%clk 0:02:43]}  Nbd7 {[%clk 0:02:34]} 12. Qf3 {[%clk 0:02:41]}  b5 {[%clk 0:02:04]} 13. g5 {[%clk 0:02:24]}  hxg5 {[%clk 0:02:04]} 14. hxg5 {[%clk 0:02:24]}  Rxh1 {[%clk 0:02:05]} 15. Qxh1 {[%clk 0:02:24]}  b4 {[%clk 0:01:48]} 16. gxf6 {[%clk 0:01:44]}  bxc3 {[%clk 0:01:48]} 17. fxg7 {[%clk 0:01:45]}  Bxg7 {[%clk 0:01:45]} 18. Bxc4 {[%clk 0:01:09]}  cxb2 {[%clk 0:01:21]} 19. Bxf7+ {[%clk 0:01:08]}  Kxf7 {[%clk 0:01:21]} 20. Rb1 {[%clk 0:01:09]}  Qxc2 {[%clk 0:01:18]} 21. Qh5+ {[%clk 0:01:01]}  Kg8 {[%clk 0:01:15]} 22. Nd2 {[%clk 0:00:56]}  Rc8 {[%clk 0:01:05]} 23. Qg6 {[%clk 0:00:40]}  Nf8 {[%clk 0:01:04]} 24. Qg4 {[%clk 0:00:29]}  Kf7 {[%clk 0:01:04]} 25. Qh5+ {[%clk 0:00:26]}  Kg8 {[%clk 0:00:59]} 26. Bh6 {[%clk 0:00:21]}  Qd3 {[%clk 0:00:35]} 27. Qg5 {[%clk 0:00:08]}  Rc1+ {[%clk 0:00:16]} 28. Kf2 {[%clk 0:00:08]}  Qxd2+ {[%clk 0:00:08]} 29. Qxd2 {[%clk 0:00:08]}  Rxb1 {[%clk 0:00:09]} 30. Qc2 {[%clk 0:00:04]}  Rh1 {[%clk 0:00:09]} 31. Qxb2 {[%clk 0:00:00]}  Rh2+ {[%clk 0:00:09]} 0-1


[Site "https://www.chess.com"]

[Event "Titled Tuesday Blitz August 22 Late 2023"]
[White "Nielsen, Viktor Haarmark"]
[Black "KSho99"]
[WhiteFideId "1444492"]
[WhiteElo "2444"]
[BlackElo "2222"]
[Result "1/2-1/2"]
[Round "4"]
[TimeControl "180+1"]
[Date "2023.08.22"]
[WhiteClock "0:00:24"]
[BlackClock "0:00:09"]
[Board "172"]

1. e4 {[%clk 0:02:56]}  b6 {[%clk 0:02:58]} 2. d4 {[%clk 0:02:54]}  Bb7 {[%clk 0:02:55]} 3. Bd3 {[%clk 0:02:54]}  d6 {[%clk 0:02:53]} 4. Nc3 {[%clk 0:02:54]}  Nd7 {[%clk 0:02:54]} 5. f4 {[%clk 0:02:54]}  g6 {[%clk 0:02:47]} 6. Nf3 {[%clk 0:02:54]}  Bg7 {[%clk 0:02:47]} 7. Be3 {[%clk 0:02:55]}  c5 {[%clk 0:02:43]} 8. d5 {[%clk 0:02:55]}  Ngf6 {[%clk 0:02:38]} 9. Qe2 {[%clk 0:02:52]}  O-O {[%clk 0:02:37]} 10. a4 {[%clk 0:02:52]}  e6 {[%clk 0:02:33]} 11. dxe6 {[%clk 0:02:34]}  fxe6 {[%clk 0:02:32]} 12. O-O {[%clk 0:02:35]}  Kh8 {[%clk 0:02:19]} 13. Ng5 {[%clk 0:02:25]}  Qe7 {[%clk 0:02:17]} 14. f5 {[%clk 0:02:22]}  exf5 {[%clk 0:02:06]} 15. exf5 {[%clk 0:02:23]}  Rfe8 {[%clk 0:01:19]} 16. Bf4 {[%clk 0:02:20]}  Qxe2 {[%clk 0:01:08]} 17. Nxe2 {[%clk 0:02:18]}  gxf5 {[%clk 0:00:56]} 18. Nf7+ {[%clk 0:02:16]}  Kg8 {[%clk 0:00:56]} 19. Nxd6 {[%clk 0:02:17]}  Bd5 {[%clk 0:00:54]} 20. Ng3 {[%clk 0:02:10]}  Ne4 {[%clk 0:00:50]} 21. Nxe8 {[%clk 0:01:43]}  Rxe8 {[%clk 0:00:49]} 22. Nxf5 {[%clk 0:01:38]}  Bxb2 {[%clk 0:00:46]} 23. Rae1 {[%clk 0:01:38]}  Ndf6 {[%clk 0:00:44]} 24. Nd6 {[%clk 0:00:57]}  Bd4+ {[%clk 0:00:30]} 25. Kh1 {[%clk 0:00:46]}  Nf2+ {[%clk 0:00:30]} 26. Rxf2 {[%clk 0:00:45]}  Rxe1+ {[%clk 0:00:28]} 27. Rf1 {[%clk 0:00:46]}  Rxf1+ {[%clk 0:00:19]} 28. Bxf1 {[%clk 0:00:47]}  Ng4 {[%clk 0:00:16]} 29. h3 {[%clk 0:00:41]}  Ne3 {[%clk 0:00:11]} 30. Bxe3 {[%clk 0:00:33]}  Bxe3 {[%clk 0:00:12]} 31. Bc4 {[%clk 0:00:34]}  Bxc4 {[%clk 0:00:09]} 32. Nxc4 {[%clk 0:00:35]}  Bf4 {[%clk 0:00:09]} 33. g4 {[%clk 0:00:35]}  Kf7 {[%clk 0:00:08]} 34. Kg2 {[%clk 0:00:35]}  Ke6 {[%clk 0:00:09]} 35. Kf3 {[%clk 0:00:36]}  Bc7 {[%clk 0:00:05]} 36. Ke4 {[%clk 0:00:36]}  a6 {[%clk 0:00:04]} 37. Ne3 {[%clk 0:00:36]}  b5 {[%clk 0:00:04]} 38. axb5 {[%clk 0:00:37]}  axb5 {[%clk 0:00:04]} 39. Nf5 {[%clk 0:00:36]}  Be5 {[%clk 0:00:04]} 40. h4 {[%clk 0:00:34]}  Bh8 {[%clk 0:00:03]} 41. h5 {[%clk 0:00:34]}  c4 {[%clk 0:00:02]} 42. Ne3 {[%clk 0:00:24]}  Kd6 {[%clk 0:00:02]} 43. Nd5 {[%clk 0:00:21]}  Kc5 {[%clk 0:00:02]} 44. g5 {[%clk 0:00:21]}  b4 {[%clk 0:00:02]} 45. Nf6 {[%clk 0:00:20]}  Bxf6 {[%clk 0:00:01]} 46. gxf6 {[%clk 0:00:20]}  Kd6 {[%clk 0:00:02]} 47. Kd4 {[%clk 0:00:20]}  b3 {[%clk 0:00:02]} 48. cxb3 {[%clk 0:00:17]}  cxb3 {[%clk 0:00:03]} 49. Kc3 {[%clk 0:00:18]}  Ke6 {[%clk 0:00:03]} 50. Kxb3 {[%clk 0:00:19]}  Kxf6 {[%clk 0:00:04]} 51. Kc3 {[%clk 0:00:19]}  Kg5 {[%clk 0:00:04]} 52. Kd3 {[%clk 0:00:20]}  Kxh5 {[%clk 0:00:04]} 53. Ke2 {[%clk 0:00:21]}  Kg4 {[%clk 0:00:05]} 54. Kf1 {[%clk 0:00:22]}  Kg3 {[%clk 0:00:06]} 55. Kg1 {[%clk 0:00:23]}  h5 {[%clk 0:00:06]} 56. Kh1 {[%clk 0:00:24]}  h4 {[%clk 0:00:07]} 57. Kg1 {[%clk 0:00:24]}  h3 {[%clk 0:00:08]} 58. Kh1 {[%clk 0:00:24]}  h2 {[%clk 0:00:09]} 1/2-1/2


[Site "https://www.chess.com"]

[Event "Titled Tuesday Blitz August 22 Late 2023"]
[White "Capp, Stephen"]
[Black "Bazilius, Augustinas"]
[WhiteFideId "2027089"]
[BlackFideId "12832251"]
[WhiteElo "2188"]
[BlackElo "2443"]
[Result "0-1"]
[Round "4"]
[TimeControl "180+1"]
[Date "2023.08.22"]
[WhiteClock "0:00:00"]
[BlackClock "0:00:01"]
[Board "173"]

1. e4 {[%clk 0:02:57]}  c5 {[%clk 0:03:00]} 2. Nc3 {[%clk 0:02:56]}  e6 {[%clk 0:02:57]} 3. Bc4 {[%clk 0:02:55]}  a6 {[%clk 0:02:55]} 4. a4 {[%clk 0:02:54]}  Nc6 {[%clk 0:02:53]} 5. d3 {[%clk 0:02:54]}  Nf6 {[%clk 0:02:48]} 6. Bb3 {[%clk 0:02:52]}  Be7 {[%clk 0:02:42]} 7. f4 {[%clk 0:02:52]}  d6 {[%clk 0:02:38]} 8. Nf3 {[%clk 0:02:52]}  O-O {[%clk 0:02:38]} 9. O-O {[%clk 0:02:51]}  Qc7 {[%clk 0:02:34]} 10. Ne2 {[%clk 0:02:51]}  b6 {[%clk 0:02:27]} 11. Qe1 {[%clk 0:02:50]}  Bb7 {[%clk 0:02:26]} 12. Bd2 {[%clk 0:02:47]}  b5 {[%clk 0:02:26]} 13. Kh1 {[%clk 0:02:44]}  c4 {[%clk 0:02:21]} 14. Ba2 {[%clk 0:02:41]}  cxd3 {[%clk 0:01:45]} 15. cxd3 {[%clk 0:02:41]}  bxa4 {[%clk 0:01:38]} 16. Bc3 {[%clk 0:02:33]}  a5 {[%clk 0:01:38]} 17. Qg3 {[%clk 0:02:23]}  Nb4 {[%clk 0:01:29]} 18. Bb1 {[%clk 0:02:09]}  Ba6 {[%clk 0:01:24]} 19. e5 {[%clk 0:02:06]}  dxe5 {[%clk 0:01:22]} 20. Bxe5 {[%clk 0:01:57]}  Qd7 {[%clk 0:01:10]} 21. Nfd4 {[%clk 0:01:38]}  Rad8 {[%clk 0:00:44]} 22. f5 {[%clk 0:01:35]}  Nh5 {[%clk 0:00:23]} 23. Qh3 {[%clk 0:01:22]}  Bf6 {[%clk 0:00:15]} 24. Bxf6 {[%clk 0:00:59]}  Nxf6 {[%clk 0:00:16]} 25. fxe6 {[%clk 0:00:57]}  fxe6 {[%clk 0:00:14]} 26. Nxe6 {[%clk 0:00:51]}  Rde8 {[%clk 0:00:10]} 27. N2f4 {[%clk 0:00:46]}  Rf7 {[%clk 0:00:03]} 28. d4 {[%clk 0:00:35]}  Rfe7 {[%clk 0:00:03]} 29. d5 {[%clk 0:00:32]}  Nbxd5 {[%clk 0:00:02]} 30. Nxd5 {[%clk 0:00:24]}  Qxd5 {[%clk 0:00:03]} 31. Ba2 {[%clk 0:00:10]}  Bc4 {[%clk 0:00:01]} 32. Nf4 {[%clk 0:00:00]}  Qc5 {[%clk 0:00:01]} 0-1


[Site "https://www.chess.com"]

[Event "Titled Tuesday Blitz August 22 Late 2023"]
[White "Sernecki, Franciszek"]
[Black "Hartikainen, Jarmo"]
[WhiteFideId "1169297"]
[BlackFideId "503134"]
[WhiteElo "2438"]
[BlackElo "2106"]
[Result "1-0"]
[Round "4"]
[TimeControl "180+1"]
[Date "2023.08.22"]
[WhiteClock "0:01:03"]
[BlackClock "0:00:10"]
[Board "178"]

1. e4 {[%clk 0:03:00]}  c5 {[%clk 0:02:59]} 2. d4 {[%clk 0:03:00]}  cxd4 {[%clk 0:02:59]} 3. Nf3 {[%clk 0:03:01]}  Nc6 {[%clk 0:02:58]} 4. Nxd4 {[%clk 0:03:01]}  Nf6 {[%clk 0:02:58]} 5. Nc3 {[%clk 0:03:01]}  d6 {[%clk 0:02:58]} 6. g3 {[%clk 0:03:00]}  e5 {[%clk 0:02:49]} 7. Nde2 {[%clk 0:02:59]}  Bg4 {[%clk 0:02:43]} 8. Bg2 {[%clk 0:02:59]}  Nd4 {[%clk 0:02:38]} 9. h3 {[%clk 0:02:53]}  Nxe2 {[%clk 0:02:34]} 10. Nxe2 {[%clk 0:02:48]}  Be6 {[%clk 0:02:30]} 11. Nc3 {[%clk 0:02:43]}  Be7 {[%clk 0:02:27]} 12. Be3 {[%clk 0:02:40]}  Qd7 {[%clk 0:02:23]} 13. Qd2 {[%clk 0:02:33]}  b5 {[%clk 0:02:18]} 14. Nd5 {[%clk 0:02:29]}  Bxd5 {[%clk 0:02:18]} 15. exd5 {[%clk 0:02:29]}  a5 {[%clk 0:02:13]} 16. O-O {[%clk 0:02:25]}  O-O {[%clk 0:02:11]} 17. f4 {[%clk 0:02:12]}  exf4 {[%clk 0:01:53]} 18. Rxf4 {[%clk 0:02:09]}  Nh5 {[%clk 0:01:29]} 19. Rf3 {[%clk 0:02:06]}  f5 {[%clk 0:01:20]} 20. Raf1 {[%clk 0:02:02]}  g6 {[%clk 0:00:49]} 21. Bd4 {[%clk 0:01:46]}  Bf6 {[%clk 0:00:49]} 22. g4 {[%clk 0:01:41]}  Bxd4+ {[%clk 0:00:48]} 23. Qxd4 {[%clk 0:01:41]}  Qg7 {[%clk 0:00:49]} 24. Qb6 {[%clk 0:01:19]}  fxg4 {[%clk 0:00:37]} 25. hxg4 {[%clk 0:01:09]}  Rxf3 {[%clk 0:00:28]} 26. Rxf3 {[%clk 0:01:07]}  Nf6 {[%clk 0:00:18]} 27. Qxd6 {[%clk 0:01:07]}  Re8 {[%clk 0:00:10]} 28. Qxf6 {[%clk 0:01:03]} 1-0


[Site "https://www.chess.com"]

[Event "Titled Tuesday Blitz August 22 Late 2023"]
[White "Bochnicka, Vladimir"]
[Black "Mr_November18"]
[WhiteFideId "14943450"]
[WhiteElo "2435"]
[BlackElo "1970"]
[Result "1-0"]
[Round "4"]
[TimeControl "180+1"]
[Date "2023.08.22"]
[WhiteClock "0:02:00"]
[BlackClock "0:00:28"]
[Board "179"]

1. e4 {[%clk 0:03:00]}  c5 {[%clk 0:02:58]} 2. Nf3 {[%clk 0:02:58]}  d6 {[%clk 0:02:58]} 3. d4 {[%clk 0:02:55]}  cxd4 {[%clk 0:02:57]} 4. Nxd4 {[%clk 0:02:55]}  Nf6 {[%clk 0:02:57]} 5. Nc3 {[%clk 0:02:54]}  g6 {[%clk 0:02:56]} 6. Be2 {[%clk 0:02:51]}  Bg7 {[%clk 0:02:56]} 7. Nb3 {[%clk 0:02:51]}  O-O {[%clk 0:02:55]} 8. O-O {[%clk 0:02:50]}  Be6 {[%clk 0:02:54]} 9. Bg5 {[%clk 0:02:51]}  Nc6 {[%clk 0:02:54]} 10. Kh1 {[%clk 0:02:50]}  Rc8 {[%clk 0:02:53]} 11. f4 {[%clk 0:02:50]}  Na5 {[%clk 0:02:52]} 12. e5 {[%clk 0:02:46]}  Nxb3 {[%clk 0:02:42]} 13. exf6 {[%clk 0:02:39]}  exf6 {[%clk 0:02:42]} 14. axb3 {[%clk 0:02:33]}  fxg5 {[%clk 0:02:40]} 15. fxg5 {[%clk 0:02:34]}  Qxg5 {[%clk 0:02:37]} 16. Qxd6 {[%clk 0:02:32]}  Rfd8 {[%clk 0:02:07]} 17. Qg3 {[%clk 0:02:20]}  Qd2 {[%clk 0:01:41]} 18. Bd3 {[%clk 0:02:15]}  a6 {[%clk 0:01:28]} 19. Ne4 {[%clk 0:02:10]}  Qh6 {[%clk 0:01:21]} 20. Nf6+ {[%clk 0:02:04]}  Kh8 {[%clk 0:01:17]} 21. Ra4 {[%clk 0:02:04]}  Rc6 {[%clk 0:00:28]} 22. Rh4 {[%clk 0:02:00]} 1-0


[Site "https://www.chess.com"]

[Event "Titled Tuesday Blitz August 22 Late 2023"]
[White "Baghdasaryan, Vahe"]
[Black "cthake"]
[WhiteFideId "13303139"]
[WhiteElo "2372"]
[BlackElo "1844"]
[Result "1-0"]
[Round "4"]
[TimeControl "180+1"]
[Date "2023.08.22"]
[WhiteClock "0:00:12"]
[BlackClock "0:00:05"]
[Board "180"]

1. e4 {[%clk 0:03:00]}  c5 {[%clk 0:02:59]} 2. c3 {[%clk 0:03:00]}  e6 {[%clk 0:02:55]} 3. d4 {[%clk 0:03:00]}  d5 {[%clk 0:02:55]} 4. exd5 {[%clk 0:03:00]}  exd5 {[%clk 0:02:55]} 5. Nf3 {[%clk 0:03:00]}  cxd4 {[%clk 0:02:54]} 6. Nxd4 {[%clk 0:02:59]}  Nf6 {[%clk 0:02:54]} 7. Bb5+ {[%clk 0:02:59]}  Bd7 {[%clk 0:02:53]} 8. Bxd7+ {[%clk 0:02:59]}  Qxd7 {[%clk 0:02:50]} 9. O-O {[%clk 0:03:00]}  Be7 {[%clk 0:02:48]} 10. Nd2 {[%clk 0:02:59]}  O-O {[%clk 0:02:48]} 11. N2f3 {[%clk 0:02:58]}  Nc6 {[%clk 0:02:47]} 12. Re1 {[%clk 0:02:54]}  Ne4 {[%clk 0:02:46]} 13. Nxc6 {[%clk 0:02:51]}  Qxc6 {[%clk 0:02:39]} 14. Nd4 {[%clk 0:02:49]}  Qg6 {[%clk 0:02:35]} 15. f3 {[%clk 0:02:48]}  Bh4 {[%clk 0:02:28]} 16. fxe4 {[%clk 0:02:41]}  Bxe1 {[%clk 0:02:27]} 17. Qxe1 {[%clk 0:02:42]}  dxe4 {[%clk 0:02:10]} 18. Bf4 {[%clk 0:02:40]}  Rfe8 {[%clk 0:02:05]} 19. Qe3 {[%clk 0:02:39]}  Qb6 {[%clk 0:02:02]} 20. Rf1 {[%clk 0:02:10]}  Qxb2 {[%clk 0:01:53]} 21. Qg3 {[%clk 0:02:08]}  e3 {[%clk 0:01:37]} 22. Be5 {[%clk 0:01:35]}  Rxe5 {[%clk 0:01:18]} 23. Qxe5 {[%clk 0:01:33]}  Qxc3 {[%clk 0:01:18]} 24. Qd5 {[%clk 0:01:00]}  Rf8 {[%clk 0:01:07]} 25. Qe4 {[%clk 0:00:46]}  Qd2 {[%clk 0:00:53]} 26. Nf3 {[%clk 0:00:33]}  Qxa2 {[%clk 0:00:48]} 27. Qxe3 {[%clk 0:00:33]}  a5 {[%clk 0:00:45]} 28. Qe4 {[%clk 0:00:32]}  b5 {[%clk 0:00:43]} 29. Ng5 {[%clk 0:00:31]}  g6 {[%clk 0:00:38]} 30. Qh4 {[%clk 0:00:27]}  h5 {[%clk 0:00:35]} 31. g4 {[%clk 0:00:21]}  Qc4 {[%clk 0:00:30]} 32. h3 {[%clk 0:00:18]}  Qd4+ {[%clk 0:00:29]} 33. Kh1 {[%clk 0:00:18]}  Qd5+ {[%clk 0:00:28]} 34. Nf3 {[%clk 0:00:18]}  hxg4 {[%clk 0:00:25]} 35. hxg4 {[%clk 0:00:19]}  Kg7 {[%clk 0:00:22]} 36. Kg2 {[%clk 0:00:16]}  Rh8 {[%clk 0:00:21]} 37. Qg3 {[%clk 0:00:16]}  Qa2+ {[%clk 0:00:20]} 38. Rf2 {[%clk 0:00:15]}  Qd5 {[%clk 0:00:19]} 39. g5 {[%clk 0:00:14]}  a4 {[%clk 0:00:18]} 40. Rd2 {[%clk 0:00:14]}  Qb7 {[%clk 0:00:15]} 41. Qe5+ {[%clk 0:00:14]}  Kh7 {[%clk 0:00:12]} 42. Kg3 {[%clk 0:00:14]}  Kg8 {[%clk 0:00:05]} 43. Rd8+ {[%clk 0:00:12]}  Kh7 {[%clk 0:00:05]} 44. Rxh8# {[%clk 0:00:12]} 1-0


[Site "https://www.chess.com"]

[Event "Titled Tuesday Blitz August 22 Late 2023"]
[White "Bettalli, Francesco"]
[Black "Acikel, Mert"]
[WhiteFideId "2816453"]
[BlackFideId "12956465"]
[WhiteElo "2509"]
[BlackElo "2316"]
[Result "1-0"]
[Round "4"]
[TimeControl "180+1"]
[Date "2023.08.22"]
[WhiteClock "0:00:23"]
[BlackClock "0:00:01"]
[Board "182"]

1. d4 {[%clk 0:03:00]}  d5 {[%clk 0:02:59]} 2. Nc3 {[%clk 0:02:55]}  c6 {[%clk 0:02:54]} 3. e4 {[%clk 0:02:51]}  dxe4 {[%clk 0:02:54]} 4. Nxe4 {[%clk 0:02:52]}  Bf5 {[%clk 0:02:54]} 5. Ng3 {[%clk 0:02:51]}  Bg6 {[%clk 0:02:54]} 6. h4 {[%clk 0:02:52]}  h6 {[%clk 0:02:54]} 7. Nh3 {[%clk 0:02:53]}  Nf6 {[%clk 0:02:49]} 8. Nf4 {[%clk 0:02:53]}  Bh7 {[%clk 0:02:49]} 9. Bc4 {[%clk 0:02:50]}  e5 {[%clk 0:02:49]} 10. dxe5 {[%clk 0:02:46]}  Qa5+ {[%clk 0:02:49]} 11. Bd2 {[%clk 0:02:40]}  Qxe5+ {[%clk 0:02:49]} 12. Be3 {[%clk 0:02:32]}  Nbd7 {[%clk 0:02:44]} 13. O-O {[%clk 0:02:31]}  O-O-O {[%clk 0:02:38]} 14. Qf3 {[%clk 0:02:26]}  Bc5 {[%clk 0:02:35]} 15. Nd3 {[%clk 0:02:26]}  Bxd3 {[%clk 0:02:33]} 16. Bf4 {[%clk 0:02:24]}  Qd4 {[%clk 0:02:16]} 17. cxd3 {[%clk 0:02:24]}  Ne5 {[%clk 0:02:02]} 18. Bxe5 {[%clk 0:01:44]}  Qxe5 {[%clk 0:02:02]} 19. Rfe1 {[%clk 0:01:39]}  Qc7 {[%clk 0:01:55]} 20. Nf5 {[%clk 0:01:38]}  Kb8 {[%clk 0:01:24]} 21. Nxg7 {[%clk 0:01:29]}  Rhg8 {[%clk 0:01:24]} 22. Qxf6 {[%clk 0:01:27]}  Qg3 {[%clk 0:01:09]} 23. Qe5+ {[%clk 0:01:20]}  Qxe5 {[%clk 0:00:50]} 24. Rxe5 {[%clk 0:01:21]}  Bd4 {[%clk 0:00:45]} 25. Re7 {[%clk 0:01:17]}  Rxg7 {[%clk 0:00:43]} 26. Kf1 {[%clk 0:01:09]}  Bxb2 {[%clk 0:00:40]} 27. Rb1 {[%clk 0:01:08]}  Bd4 {[%clk 0:00:23]} 28. Rbxb7+ {[%clk 0:01:06]}  Ka8 {[%clk 0:00:23]} 29. Rbc7 {[%clk 0:00:57]}  Rb8 {[%clk 0:00:15]} 30. Ba6 {[%clk 0:00:54]}  Rb1+ {[%clk 0:00:10]} 31. Ke2 {[%clk 0:00:54]}  Rb2+ {[%clk 0:00:10]} 32. Kd1 {[%clk 0:00:55]}  Rb1+ {[%clk 0:00:07]} 33. Kc2 {[%clk 0:00:53]}  Rb2+ {[%clk 0:00:07]} 34. Kc1 {[%clk 0:00:54]}  Rg8 {[%clk 0:00:06]} 35. Rxa7+ {[%clk 0:00:44]}  Bxa7 {[%clk 0:00:05]} 36. Kxb2 {[%clk 0:00:44]}  Rb8+ {[%clk 0:00:04]} 37. Kc3 {[%clk 0:00:43]}  f6 {[%clk 0:00:02]} 38. f3 {[%clk 0:00:41]}  Bc5 {[%clk 0:00:03]} 39. Rc7 {[%clk 0:00:39]}  Bb4+ {[%clk 0:00:02]} 40. Kc4 {[%clk 0:00:39]}  c5 {[%clk 0:00:03]} 41. Bb5 {[%clk 0:00:39]}  Rb6 {[%clk 0:00:03]} 42. Rh7 {[%clk 0:00:35]}  Rd6 {[%clk 0:00:02]} 43. Rxh6 {[%clk 0:00:31]}  Rd4+ {[%clk 0:00:03]} 44. Kb3 {[%clk 0:00:32]}  Rd6 {[%clk 0:00:02]} 45. g4 {[%clk 0:00:30]}  Ka7 {[%clk 0:00:03]} 46. g5 {[%clk 0:00:30]}  Kb6 {[%clk 0:00:04]} 47. a4 {[%clk 0:00:25]}  c4+ {[%clk 0:00:01]} 48. Bxc4 {[%clk 0:00:23]} 1-0


[Site "https://www.chess.com"]

[Event "Titled Tuesday Blitz August 22 Late 2023"]
[White "Shapiro, Daniel"]
[Black "The_Straightforward_Rook"]
[WhiteFideId "2001780"]
[WhiteElo "2290"]
[BlackElo "2457"]
[Result "0-1"]
[Round "4"]
[TimeControl "180+1"]
[Date "2023.08.22"]
[WhiteClock "0:00:00"]
[BlackClock "0:01:27"]
[Board "184"]

1. d4 {[%clk 0:03:00]}  Nf6 {[%clk 0:02:59]} 2. c4 {[%clk 0:03:00]}  e6 {[%clk 0:02:59]} 3. g3 {[%clk 0:03:00]}  Bb4+ {[%clk 0:03:00]} 4. Bd2 {[%clk 0:02:56]}  a5 {[%clk 0:03:00]} 5. Bg2 {[%clk 0:02:56]}  O-O {[%clk 0:03:00]} 6. Nf3 {[%clk 0:02:54]}  d5 {[%clk 0:03:01]} 7. Qc2 {[%clk 0:02:53]}  c5 {[%clk 0:03:00]} 8. dxc5 {[%clk 0:02:51]}  d4 {[%clk 0:02:58]} 9. Bxb4 {[%clk 0:02:45]}  axb4 {[%clk 0:02:59]} 10. Nbd2 {[%clk 0:02:36]}  Nc6 {[%clk 0:02:59]} 11. O-O {[%clk 0:02:19]}  e5 {[%clk 0:02:58]} 12. Ng5 {[%clk 0:02:14]}  h6 {[%clk 0:02:55]} 13. Nge4 {[%clk 0:02:13]}  Bf5 {[%clk 0:02:50]} 14. Nxf6+ {[%clk 0:02:08]}  Qxf6 {[%clk 0:02:51]} 15. Be4 {[%clk 0:02:08]}  Bh3 {[%clk 0:02:35]} 16. Rfe1 {[%clk 0:01:51]}  Qe7 {[%clk 0:02:33]} 17. Nb3 {[%clk 0:01:48]}  f5 {[%clk 0:02:31]} 18. Bd5+ {[%clk 0:01:48]}  Kh8 {[%clk 0:02:31]} 19. e3 {[%clk 0:01:45]}  dxe3 {[%clk 0:02:20]} 20. Rxe3 {[%clk 0:01:42]}  e4 {[%clk 0:02:13]} 21. f3 {[%clk 0:01:07]}  Ne5 {[%clk 0:01:54]} 22. fxe4 {[%clk 0:01:02]}  f4 {[%clk 0:01:53]} 23. gxf4 {[%clk 0:00:54]}  Rxf4 {[%clk 0:01:53]} 24. Rxh3 {[%clk 0:00:51]}  Qg5+ {[%clk 0:01:34]} 25. Rg3 {[%clk 0:00:39]}  Nf3+ {[%clk 0:01:33]} 26. Kg2 {[%clk 0:00:32]}  Qh5 {[%clk 0:01:33]} 27. h3 {[%clk 0:00:21]}  Raf8 {[%clk 0:01:29]} 28. Rd1 {[%clk 0:00:00]}  Nh4+ {[%clk 0:01:27]} 0-1


[Site "https://www.chess.com"]